fUSD/lending_fUSD_20260116
["ID","MTS","AMOUNT","RATE_DAILY","PERIOD"]
[402202687,1768595442482,-500.0,0.00016438,2]
[402202688,1768595442491,-500.0,0.00016438,2]
[402202689,1768595442501,-500.0,0.00016438,2]
[402202690,1768595442510,-500.0,0.00016438,2]
[402202691,1768595442520,-1248.0,0.00016438,2]
[402202692,1768595442529,-165.03,0.0001644,2]
[402202693,1768595442539,-165.03,0.0001644,2]
[402202694,1768595442548,-165.03,0.0001644,2]
[402202695,1768595442557,-165.03,0.0001644,2]
[402202696,1768595442566,-962.63278999,0.00016453,2]
[402202697,1768595442575,-19897.63636785,0.00016493,2]
[402202698,1768595442584,-7694.86936553,0.00016493,2]
[402202699,1768595442593,-510.0,0.00016522,2]
[402202700,1768595442602,-166.66,0.00016597,2]
[402202701,1768595442617,-564.20207547,0.00016667,2]
[402202702,1768595442630,-833.0,0.0001672,2]
[402202703,1768595442640,-15084.69728878,0.00016761,2]
[402202704,1768595442649,-19897.63636785,0.00016774,2]
[402202705,1768595442659,-7694.86936553,0.00016774,2]
[402202706,1768595442669,-1086.2,0.000168,2]
[402202707,1768595442683,-962.63278999,0.00016814,2]
[402202708,1768595442693,-617.40005154,0.00016838,2]
[402202709,1768595442703,-500.0,0.00016868,2]
[402202710,1768595442713,-500.0,0.00016868,2]
[402202711,1768595442725,-1500.0,0.00016868,2]
[402202712,1768595442735,-500.0,0.00016921,2]
[402202713,1768595442744,-500.0,0.00016921,2]
[402202714,1768595442757,-2840.37,0.0001694,2]
[402202715,1768595442766,-500.0,0.00016954,2]
[402202716,1768595442776,-150.0,0.00016954,2]
[402202717,1768595442785,-500.0,0.00016954,2]
[402202718,1768595442795,-150.0,0.00016954,2]
[402202720,1768595442804,-150.0,0.00016954,2]
[402202722,1768595442814,-500.0,0.00016954,2]
[402202724,1768595442823,-150.0,0.00016954,2]
[402202725,1768595442834,-150.0,0.00016954,2]
[402202726,1768595442843,-500.0,0.00016954,2]
[402202727,1768595442852,-150.0,0.00016954,2]
[402202729,1768595442862,-150.0,0.00016954,2]
[402202730,1768595442871,-150.0,0.00016954,2]
[402202731,1768595442881,-150.0,0.00016954,2]
[402202732,1768595442891,-250.0,0.00017,2]
[402202733,1768595442901,-500.0,0.00017009,2]
[402202734,1768595442910,-150.0,0.00017009,2]
[402202735,1768595442920,-500.0,0.00017009,2]
[402202736,1768595442929,-150.0,0.00017009,2]
[402202737,1768595442939,-215.2744525,0.00017009,2]
[402202738,1768595442949,-500.0,0.00017009,2]
[402202739,1768595442958,-150.0,0.00017009,2]
[402202740,1768595442967,-150.0,0.00017009,2]
[402202742,1768595442978,-500.0,0.00017009,2]
[402202743,1768595442987,-150.0,0.00017009,2]
[402202744,1768595442997,-150.0,0.00017009,2]
[402202745,1768595443010,-835.0,0.0001704,2]
[402202746,1768595443020,-1000.0,0.00017054,2]
[402202747,1768595443030,-19897.63636785,0.00017056,2]
[402202748,1768595443040,-500.0,0.00017064,2]
[402202749,1768595443050,-150.0,0.00017064,2]
[402202751,1768595443059,-500.0,0.00017064,2]
[402202752,1768595443069,-200.0,0.00017064,2]
[402202753,1768595443078,-500.0,0.00017064,2]
[402202754,1768595443088,-203.41886511,0.00017064,2]
[402202755,1768595443097,-207.66964705,0.00017064,2]
[402202756,1768595443107,-500.0,0.00017064,2]
[402202757,1768595443116,-150.0,0.00017064,2]
[402202758,1768595443126,-150.0,0.00017064,2]
[402202759,1768595443135,-334.5472959,0.00017111,2]
[402202760,1768595443145,-1239.0,0.00017111,2]
[402202761,1768595443155,-213.63364475,0.00017118,2]
[402202762,1768595443164,-500.0,0.00017118,2]
[402202763,1768595443174,-150.0,0.00017118,2]
[402202764,1768595443184,-500.0,0.00017118,2]
[402202765,1768595443193,-150.0,0.00017118,2]
[402202766,1768595443203,-150.0,0.00017118,2]
[402202767,1768595443212,-161.71648892,0.00017118,2]
[402202768,1768595443222,-500.0,0.00017118,2]
[402202769,1768595443232,-221.72177176,0.00017118,2]
[402202770,1768595443242,-500.0,0.00017118,2]
[402202771,1768595443251,-204.47202902,0.00017118,2]
[402202772,1768595443260,-500.0,0.00017118,2]
[402202773,1768595443270,-168.75385845,0.00017118,2]
[402202774,1768595443280,-500.0,0.00017118,2]
[402202775,1768595443291,-150.0,0.00017118,2]
[402202776,1768595443300,-150.0,0.00017118,2]
[402202777,1768595443310,-166.66,0.00017128,2]
[402202778,1768595443320,-500.0,0.00017173,2]
[402202779,1768595443330,-150.0,0.00017173,2]
[402202780,1768595443340,-500.0,0.00017173,2]
[402202781,1768595443350,-150.0,0.00017173,2]
[402202782,1768595443360,-150.0,0.00017173,2]
[402202783,1768595443369,-563.11024684,0.00017173,2]
[402202784,1768595443379,-500.0,0.00017173,2]
[402202785,1768595443392,-312.08693291,0.00017173,2]
[402202786,1768595443402,-213.10851229,0.00017173,2]
[402202787,1768595443411,-261.09943952,0.00017173,2]
[402202788,1768595443421,-962.63278999,0.00017176,2]
[402202789,1768595443431,-12500.0,0.000172,6]
[402202790,1768595443445,-150.0,0.00017209,2]
[402202791,1768595443455,-500.0,0.00017228,2]
[402202793,1768595443465,-150.0,0.00017228,2]
[402202794,1768595443476,-500.0,0.00017228,2]
[402202795,1768595443486,-150.0,0.00017228,2]
[402202796,1768595443496,-150.0,0.00017228,2]
[402202797,1768595443506,-500.0,0.00017228,2]
[402202798,1768595443516,-500.0,0.00017282,2]
[402202799,1768595443526,-150.0,0.00017282,2]
[402202800,1768595443535,-500.0,0.00017282,2]
[402202801,1768595443546,-150.0,0.00017282,2]
[402202802,1768595443556,-155.78864891,0.00017282,2]
[402202803,1768595443565,-500.0,0.00017283,2]
[402202804,1768595443575,-16600.0,0.000173,6]
[402202805,1768595443585,-500.0,0.00017337,2]
[402202806,1768595443597,-150.0,0.00017337,2]
[402202807,1768595443607,-500.0,0.00017337,2]
[402202808,1768595443617,-243.58384155,0.00017337,2]
[402202809,1768595443627,-500.0,0.00017338,2]
[402202810,1768595443637,-640.24385345,0.00017386,2]
[402202811,1768595443646,-500.0,0.00017392,2]
[402202812,1768595443656,-500.0,0.00017392,2]
[402202813,1768595443667,-500.0,0.00017392,2]
[402202814,1768595443680,-1000.0,0.000174,2]
[402202815,1768595443690,-20800.0,0.000174,6]
[402202816,1768595443699,-267.79728294,0.00017416,2]
[402202817,1768595443710,-1000.0,0.00017424,2]
[402202818,1768595443720,-500.0,0.00017447,2]
[402202819,1768595443730,-500.0,0.00017447,2]
[402202820,1768595443740,-272.48568657,0.00017447,2]
[402202821,1768595443751,-5154.42589326,0.00017462,2]
[402202822,1768595443762,-155.53654205,0.00017467,2]
[402202823,1768595443771,-2000.0,0.000175,2]
[402202824,1768595443782,-1602.74427831,0.000175,2]
[402202825,1768595443798,-4100.0,0.000175,6]
[402202826,1768595443808,-500.0,0.00017502,2]
[402202827,1768595443819,-500.0,0.00017502,2]
[402202828,1768595443829,-962.63278999,0.00017538,2]
[402202829,1768595443839,-1000.0,0.00017549,2]
[402202830,1768595443850,-500.0,0.00017556,2]
[402202831,1768595443861,-500.0,0.00017556,2]
[402202832,1768595443871,-1000.0,0.0001757,2]
[402202833,1768595443880,-150.0,0.00017571,2]
[402202834,1768595443891,-1000.0,0.000176,2]
[402202835,1768595443901,-4100.0,0.000176,6]
[402202836,1768595443911,-228.54010162,0.00017607,2]
[402202837,1768595443920,-500.0,0.00017611,2]
[402202838,1768595443930,-500.0,0.00017611,2]
[402202839,1768595443940,-508.69,0.00017625,2]
[402202840,1768595443950,-500.0,0.00017638,2]
[402202841,1768595443960,-1703.29631507,0.0001764,2]
[402202842,1768595443970,-1078.0,0.00017657,2]
[402202843,1768595443980,-166.66,0.00017658,2]
[402202844,1768595443993,-500.0,0.00017666,2]
[402202845,1768595444005,-1078.0,0.00017674,2]
[402202846,1768595444015,-2840.37,0.00017677,2]
[402202847,1768595444025,-4834.0043,0.0001768,2]
[402202848,1768595444035,-331.96649882,0.00017683,2]
[402202849,1768595444046,-5466.0,0.00017691,2]
[402202850,1768595444056,-1000.0,0.00017698,2]
[402202851,1768595444067,-255.38896935,0.00017698,2]
[402202852,1768595444076,-276.22792842,0.00017698,2]
[402202853,1768595444086,-780.72386047,0.000177,2]
[402202854,1768595444095,-4100.0,0.000177,6]
[402202855,1768595444105,-587.0,0.00017708,2]
[402202856,1768595444115,-180.90106267,0.00017721,2]
[402202857,1768595444125,-866.0,0.00017723,2]
[402202858,1768595444134,-1078.0,0.00017723,2]
[402202859,1768595444144,-150.0,0.00017728,2]
[402202860,1768595444154,-1000.0,0.00017733,2]
[402202861,1768595444163,-1000.0,0.00017738,2]
[402202862,1768595444173,-1000.0,0.0001774,2]
[402202863,1768595444185,-500.0,0.00017741,2]
[402202864,1768595444195,-1000.0,0.00017741,2]
[402202865,1768595444205,-500.0,0.00017741,2]
[402202866,1768595444214,-500.0,0.00017741,2]
[402202867,1768595444224,-500.00000017,0.00017741,2]
[402202868,1768595444234,-3862.395,0.00017742,2]
[402202869,1768595444244,-241.522,0.00017742,2]
[402202870,1768595444253,-150.0,0.00017743,2]
[402202871,1768595444263,-1000.0,0.00017753,2]
[402202872,1768595444273,-228.54010161,0.00017754,2]
[402202873,1768595444283,-150.0,0.00017763,2]
[402202874,1768595444295,-150.0,0.00017771,2]
[402202875,1768595444304,-165.03,0.00017791,2]
[402202876,1768595444314,-1078.0,0.00017797,2]
[402202877,1768595444324,-1000.0,0.00017797,2]
[402202878,1768595444334,-10000.0,0.000178,2]
[402202879,1768595444344,-500.0,0.000178,2]
[402202880,1768595444354,-500.0,0.000178,2]
[402202881,1768595444364,-1000.0,0.000178,2]
[402202882,1768595444374,-12868.30948442,0.000178,2]
[402202883,1768595444383,-4100.0,0.000178,6]
[402202884,1768595444393,-4117.73224583,0.00017801,14]
[402202885,1768595444404,-10866.76054562,0.00017801,14]
[402202886,1768595444414,-19170.25368076,0.00017801,14]
[402202887,1768595444424,-28677.55300885,0.00017801,14]
[402202888,1768595444434,-38801.7432,0.00017801,14]
[402202889,1768595444444,-1268.0,0.00017806,2]
[402202890,1768595444453,-440.402,0.00017806,2]
[402202891,1768595444463,-6559.0,0.00017806,2]
[402202892,1768595444473,-566.0,0.00017806,2]
[402202893,1768595444482,-257.234,0.00017806,2]
[402202894,1768595444492,-2442.274,0.00017806,2]
[402202895,1768595444502,-500.0,0.00017808,2]
[402202896,1768595444512,-1000.0,0.00017808,2]
[402202897,1768595444522,-480.0,0.00017808,2]
[402202898,1768595444532,-2025.7,0.00017812,2]
[402202899,1768595444543,-1000.0,0.00017812,2]
[402202900,1768595444553,-1000.0,0.00017813,2]
[402202901,1768595444562,-1000.0,0.00017816,2]
[402202902,1768595444572,-2000.0,0.0001782,2]
[402202903,1768595444582,-2000.0,0.0001782,2]
[402202904,1768595444592,-1000.0,0.00017826,2]
[402202905,1768595444602,-1000.0,0.00017828,2]
[402202906,1768595444612,-150.0,0.00017828,2]
[402202907,1768595444622,-107837.66791739,0.0001783,2]
[402202908,1768595444631,-1000.0,0.00017834,2]
[402202909,1768595444641,-1000.0,0.00017838,2]
[402202910,1768595444651,-1078.0,0.00017844,2]
[402202911,1768595444661,-150.0,0.00017853,2]
[402202912,1768595444671,-200.0,0.00017856,2]
[402202913,1768595444683,-1000.0,0.00017859,2]
[402202914,1768595444693,-500.0,0.00017863,2]
[402202915,1768595444702,-480.0,0.00017863,2]
[402202916,1768595444712,-1000.0,0.00017863,2]
[402202917,1768595444722,-30478.0,0.00017863,2]
[402202918,1768595444732,-150.0,0.00017867,2]
[402202919,1768595444742,-2351.0,0.0001788,2]
[402202920,1768595444754,-1000.0,0.00017882,2]
[402202921,1768595444765,-1000.0,0.00017888,2]
[402202922,1768595444775,-1000.0,0.00017895,2]
[402202923,1768595444785,-1000.0,0.00017897,2]
[402202924,1768595444798,-151.0,0.00017897,2]
[402202925,1768595444809,-508.16450939,0.00017899,2]
[402202926,1768595444819,-500.0,0.00017899,2]
[402202927,1768595444829,-500.0,0.00017899,2]
[402202928,1768595444839,-500.0,0.00017899,2]
[402202929,1768595444849,-500.0,0.00017899,2]
[402202930,1768595444859,-14308.24200541,0.000179,3]
[402202931,1768595444868,-145093.71483635,0.000179,2]
[402202932,1768595444878,-4659.0,0.000179,6]
[402202933,1768595444888,-5981.27033779,0.000179,2]
[402202934,1768595444897,-1694.33819335,0.000179,2]
[402202935,1768595444907,-184.87505214,0.000179,3]
[402202936,1768595444917,-228.54010161,0.000179,2]
[402202937,1768595444927,-11111.21371389,0.000179,2]
[402202938,1768595444936,-962.63278999,0.000179,2]
[402202939,1768595444947,-19437.66591942,0.000179,2]
[402202940,1768595444956,-12682.0,0.000179,2]
[402202941,1768595444966,-1000.0,0.00017901,2]
[402202942,1768595444976,-1000.0,0.00017902,2]
[402202943,1768595444986,-508.69,0.00017912,2]
[402202944,1768595444996,-1078.0,0.00017915,2]
[402202945,1768595445006,-150.0,0.00017917,2]
[402202946,1768595445016,-500.0,0.00017918,2]
[402202947,1768595445026,-480.0,0.00017918,2]
[402202948,1768595445035,-1000.0,0.00017921,2]
[402202949,1768595445048,-1000.0,0.00017922,2]
[402202950,1768595445058,-1000.0,0.00017925,2]
[402202951,1768595445068,-1000.0,0.00017926,2]
[402202952,1768595445077,-1000.0,0.00017931,2]
[402202953,1768595445087,-150.0,0.00017931,2]
[402202954,1768595445097,-1000.0,0.00017932,2]
[402202955,1768595445107,-663.93287602,0.00017934,2]
[402202956,1768595445117,-1000.0,0.0001794,2]
[402202957,1768595445128,-150.0,0.0001794,2]
[402202958,1768595445138,-1000.0,0.00017942,2]
[402202959,1768595445148,-1000.0,0.00017944,2]
[402202960,1768595445158,-1000.0,0.00017944,2]
[402202961,1768595445168,-1000.0,0.00017945,2]
[402202962,1768595445177,-1000.0,0.00017947,2]
[402202963,1768595445188,-1000.0,0.0001795,2]
[402202964,1768595445198,-1000.0,0.00017953,2]
[402202965,1768595445208,-459.39100632,0.00017959,2]
[402202966,1768595445219,-1000.0,0.00017963,2]
[402202967,1768595445228,-1000.0,0.00017964,2]
[402202968,1768595445238,-919.88148661,0.00017964,2]
[402202969,1768595445248,-500.0,0.0001797,2]
[402202970,1768595445259,-500.0,0.0001797,2]
[402202971,1768595445269,-500.0,0.0001797,2]
[402202972,1768595445278,-700.0,0.0001797,2]
[402202973,1768595445288,-500.0,0.0001797,2]
[402202974,1768595445297,-1100.0,0.0001797,2]
[402202975,1768595445307,-1000.0,0.0001797,2]
[402202976,1768595445317,-1000.0,0.00017972,2]
[402202977,1768595445326,-500.0,0.00017972,2]
[402202978,1768595445336,-480.0,0.00017972,2]
[402202979,1768595445345,-14603.0,0.00017973,2]
[402202980,1768595445355,-500.0,0.00017973,2]
[402202981,1768595445364,-150.0,0.00017973,2]
[402202982,1768595445373,-1000.0,0.00017977,2]
[402202983,1768595445383,-410.5,0.00017977,2]
[402202984,1768595445392,-1000.0,0.00017979,2]
[402202985,1768595445404,-312.8755774,0.00017981,2]
[402202986,1768595445413,-275.8,0.00017983,2]
[402202987,1768595445423,-566.80876335,0.0001799,2]
[402202988,1768595445433,-566.80876335,0.0001799,2]
[402202989,1768595445443,-1000.0,0.00017996,2]
[402202990,1768595445452,-1000.0,0.00017996,2]
[402202991,1768595445463,-166.68950746,0.00017997,2]
[402202992,1768595445472,-151.0,0.00017997,2]
[402202993,1768595445481,-222.51246168,0.00017998,2]
[402202994,1768595445491,-500.0,0.00017998,2]
[402202995,1768595445501,-500.0,0.00017998,2]
[402202996,1768595445510,-635.07593505,0.00017998,2]
[402202997,1768595445519,-150.0,0.00017999,2]
[402202998,1768595445529,-176.82451653,0.00017999,2]
[402202999,1768595445541,-1386.0844155,0.00017999,5]
[402203000,1768595445550,-86006.4946331,0.00017999,2]
[402203001,1768595445560,-6707.2842661,0.00017999,2]
[402203002,1768595445570,-235370.135459,0.00017999,2]
[402203003,1768595445579,-300.0,0.00017999,2]
[402203004,1768595445589,-666.0,0.00017999,2]
[402203005,1768595445598,-38515.1130751,0.00017999,2]
[402203006,1768595445607,-300.0,0.00017999,2]
[402203007,1768595445617,-666.0,0.00017999,2]
[402203008,1768595445627,-500.0,0.00017999,2]
[402203009,1768595445636,-300.0,0.00017999,2]
[402203010,1768595445645,-666.0,0.00017999,2]
[402203011,1768595445654,-300.0,0.00017999,2]
[402203012,1768595445664,-300.0,0.00017999,2]
[402203013,1768595445675,-187.55807195,0.00017999,2]
[402203014,1768595445687,-300.0,0.00017999,2]
[402203015,1768595445696,-300.0,0.00017999,2]
[402203016,1768595445706,-666.0,0.00017999,2]
[402203017,1768595445716,-300.0,0.00017999,2]
[402203018,1768595445727,-211.81856156,0.00018,2]
[402203019,1768595445737,-3762210.03416949,0.00018,2]
[402203021,1768595446430,-1901.97985824,0.00018,2]
[402203022,1768595446441,-1659.93475454,0.00018,2]
[402203023,1768595446452,-1232.292612,0.00018,2]
[402203024,1768595446463,-3228.08216139,0.00018,2]
[402203030,1768595447288,-294.01433333,0.00017056,2]
[402203031,1768595447300,-1423.8253525,0.00017056,2]
[402203032,1768595447312,-5977.0296797,0.00017056,2]
[402203033,1768595447321,-19897.63636785,0.00017337,2]
[402203034,1768595447330,-1264835.75279569,0.00018,2]
[402203035,1768595447342,-7653.71011226,0.00018,2]
[402203036,1768595447371,-597.93526536,0.00018,2]
[402203037,1768595447477,-77.77677626,0.00018,2]
[402203038,1768595448491,-151.0,0.00016134,2]
[402203039,1768595448500,-151.0,0.00016134,2]
[402203040,1768595448509,-1102.26040629,0.00017337,2]
[402203041,1768595491685,330.0,0.00018,30]
[402203042,1768595509059,1813.08597401,0.00014699,2]
[402203043,1768595509089,423.76487701,0.00014699,2]
[402203044,1768595509118,413.9590007,0.00014699,2]
[402203045,1768595545439,2900.0,0.000149,5]
[402203046,1768595581767,1031.20273409,0.000149,5]
[402203047,1768595704312,159.96,0.00028596,120]
[402203048,1768595786957,158.87,0.00011971,2]
[402203049,1768595842877,-351.82534366,0.00014599,2]
[402203050,1768595845885,-243.715591,0.00014599,2]
[402203051,1768595904362,243.715591,0.00014525,2]
[402203052,1768596026572,-248.61363329,0.00014599,2]
[402203053,1768596032187,-215.36640458,0.00014599,2]
[402203054,1768596034970,-176.11130083,0.00014599,2]
[402203055,1768596036601,-151.63403555,0.00014599,2]
[402203056,1768596038827,-553.79181485,0.00014599,2]
[402203057,1768596041559,-250.0,0.00014599,2]
[402203058,1768596043617,-154.25,0.00014599,2]
[402203059,1768596067170,150.0,0.00014086,2]
[402203060,1768596125509,300.0,0.00014598,2]
[402203062,1768596176987,-221.86685182,0.00014599,2]
[402203063,1768596178668,-298.28661049,0.00014599,2]
[402203064,1768596181932,-177.9353373,0.00014599,2]
[402203065,1768596183395,-291.28539149,0.00014599,2]
[402203066,1768596187521,-247.15089438,0.00014599,2]
[402203067,1768596188718,-165.75554207,0.00014599,2]
[402203068,1768596191677,-300.0,0.00014599,2]
[402203069,1768596193755,-204.00360989,0.00014599,2]
[402203070,1768596282161,-258.59322349,0.00014599,2]
[402203071,1768596285767,-258.59322348,0.00014599,2]
[402203072,1768596288546,-267.30783199,0.00014599,2]
[402203073,1768596290291,-195.0,0.00014599,2]
[402203074,1768596301229,1200.0,0.00014598,2]
[402203075,1768596305283,300.0,0.00014598,2]
[402203076,1768596356465,12043.46839455,0.0001627,30]
[402203077,1768596356847,21246.1058059,0.0001627,30]
[402203078,1768596357564,31782.9036395,0.0001627,30]
[402203079,1768596358281,43003.3923,0.0001627,30]
[402203080,1768596361232,300.0,0.00014598,2]
[402203081,1768596421193,300.0,0.00014598,2]
[402203082,1768596425144,500.0,0.00014599,2]
[402203083,1768596425188,166.76431657,0.00014599,2]
[402203084,1768596426135,-1393.2353836,0.00014599,2]
[402203085,1768596426164,-236.7828,0.00014599,2]
[402203086,1768596426193,-154.6919,0.00014599,2]
[402203087,1768596428038,-250.0,0.00014599,2]
[402203088,1768596428063,-91.0058,0.00014599,2]
[402203089,1768596430623,151.0,0.00014599,2]
[402203090,1768596431519,151.0,0.00014599,2]
[402203091,1768596431843,151.0,0.00014599,2]
[402203092,1768596432436,151.0,0.00014599,2]
[402203093,1768596433063,151.0,0.00014599,2]
[402203094,1768596433689,151.0,0.00014599,2]
[402203095,1768596434291,151.0,0.00014599,2]
[402203096,1768596434895,151.0,0.00014599,2]
[402203097,1768596435501,151.0,0.00014599,2]
[402203098,1768596436123,151.0,0.00014599,2]
[402203099,1768596436718,151.0,0.00014599,2]
[402203100,1768596441973,-508.9942,0.00014599,2]
[402203101,1768596442001,-195.0,0.00014599,2]
[402203102,1768596445908,9956.0,0.00030136,120]
[402203103,1768596450639,500.0,0.00014599,2]
[402203104,1768596451301,500.0,0.00014599,2]
[402203105,1768596451619,500.0,0.00014599,2]
[402203106,1768596452206,500.0,0.00014599,2]
[402203107,1768596452816,500.0,0.00014599,2]
[402203108,1768596453423,500.0,0.00014599,2]
[402203109,1768596454029,500.0,0.00014599,2]
[402203110,1768596454696,500.0,0.00014599,2]
[402203111,1768596455305,500.0,0.00014599,2]
[402203112,1768596455920,525.56138561,0.00014599,2]
[402203113,1768596457351,-250.0,0.00014599,2]
[402203114,1768596472970,-271.0,0.00014599,2]
[402203115,1768596518551,10000.01,0.0001459,2]
[402203116,1768596518577,7567.6174,0.0001459,2]
[402203117,1768596545128,-275.27861321,0.00014603,2]
[402203118,1768596545148,-2432.83985662,0.00014619,2]
[402203119,1768596550893,-3612.82959522,0.00014619,2]
[402203120,1768596567607,2398.3602,0.00014597,2]
[402203121,1768596573653,375.99060956,0.00014599,2]
[402203122,1768596573677,1369.90579044,0.00014599,2]
[402203123,1768596580083,8630.10420956,0.00012104,2]
[402203124,1768596580106,10000.01,0.00012104,2]
[402203125,1768596580130,1045.83579044,0.00012104,2]
[402203126,1768596604221,159.88,0.00028596,120]
[402203130,1768596622538,358.6473,0.00014597,2]
[402203131,1768596628614,236.7828,0.00014597,2]
[402203141,1768596632157,-842.30369125,0.0001467,2]
[402203142,1768596632167,-271.0,0.0001467,2]
[402203143,1768596632176,-300.0,0.00014689,2]
[402203144,1768596632185,-300.0,0.00014689,2]
[402203145,1768596632194,-1200.0,0.00014689,2]
[402203146,1768596632203,-980.81402325,0.0001469,2]
[402203172,1768596632650,-25004.53597675,0.0001469,2]
[402203173,1768596632659,-241.522,0.0001469,2]
[402203174,1768596632669,-3862.395,0.0001469,2]
[402203175,1768596632678,-150.0,0.00014696,2]
[402203176,1768596632688,-498.90937103,0.00014697,2]
[402203177,1768596632698,-500.0,0.00014697,2]
[402203178,1768596632707,-542.9785735,0.00014697,2]
[402203179,1768596632717,-500.0,0.00014697,2]
[402203180,1768596632727,-500.0,0.00014697,2]
[402203181,1768596632736,-180.54156153,0.00014697,2]
[402203182,1768596632745,-500.0,0.00014697,2]
[402203183,1768596632754,-500.0,0.00014697,2]
[402203184,1768596632764,-500.0,0.00014697,2]
[402203185,1768596632773,-500.0,0.00014697,2]
[402203186,1768596632783,-500.0,0.00014697,2]
[402203187,1768596632792,-583.5222957,0.00014697,2]
[402203188,1768596632801,-500.0,0.00014697,2]
[402203189,1768596632811,-500.0,0.00014697,2]
[402203190,1768596632821,-500.0,0.00014697,2]
[402203191,1768596632830,-500.0,0.00014697,2]
[402203192,1768596632839,-564.17,0.00014697,2]
[402203193,1768596632847,-331.74874938,0.00014698,2]
[402203194,1768596632857,-150.0,0.00014698,2]
[402203195,1768596632866,-1386.0844155,0.00014698,5]
[402203196,1768596632880,-287.7530172,0.00014698,2]
[402203197,1768596632890,-500.0,0.00014698,2]
[402203198,1768596632899,-500.0,0.00014698,2]
[402203199,1768596632908,-500.0,0.00014698,2]
[402203200,1768596632918,-500.0,0.00014698,2]
[402203201,1768596632927,-500.0,0.00014698,2]
[402203202,1768596632936,-500.0,0.00014698,2]
[402203203,1768596632945,-500.0,0.00014698,2]
[402203204,1768596632955,-500.0,0.00014698,2]
[402203205,1768596632964,-599.36905373,0.00014698,2]
[402203206,1768596632974,-500.0,0.00014698,2]
[402203207,1768596632983,-500.0,0.00014698,2]
[402203208,1768596632999,-500.0,0.00014698,2]
[402203209,1768596633011,-423.08508423,0.00014698,2]
[402203210,1768596633020,-500.0,0.00014698,2]
[402203211,1768596633030,-500.0,0.00014698,2]
[402203212,1768596633041,-500.0,0.00014698,2]
[402203213,1768596633051,-500.0,0.00014698,2]
[402203214,1768596633060,-4563.62114097,0.0001477,2]
[402203215,1768596633069,-166.66,0.00014819,2]
[402203216,1768596633081,-2485.7,0.00014865,2]
[402203217,1768596633091,-3900.0,0.000149,5]
[402203218,1768596633101,-564.17,0.00014971,2]
[402203219,1768596633111,-6045.66945179,0.00014984,2]
[402203220,1768596633121,-331.96649882,0.00015031,2]
[402203221,1768596633131,-166.66,0.00015131,2]
[402203222,1768596633141,-842.30369124,0.00015131,2]
[402203223,1768596633151,-500.0,0.00015147,2]
[402203224,1768596633161,-151.0,0.00015242,2]
[402203225,1768596633170,-151.0,0.00015243,2]
[402203226,1768596633180,-151.0,0.00015244,2]
[402203227,1768596633189,-564.17,0.00015245,2]
[402203228,1768596633199,-151.0,0.00015247,2]
[402203229,1768596633209,-6045.66945179,0.00015348,2]
[402203230,1768596633218,-166.66,0.00015443,2]
[402203231,1768596633228,-151.0,0.00015471,2]
[402203232,1768596633239,-151.0,0.00015471,2]
[402203233,1768596633249,-1000.0,0.00015473,2]
[402203234,1768596633258,-151.0,0.0001548,2]
[402203235,1768596633267,-151.0,0.0001548,2]
[402203236,1768596633276,-331.96649877,0.00015509,2]
[402203237,1768596633286,-564.17,0.00015519,2]